fUST/lending_fUST_20240819
["ID","MTS","AMOUNT","RATE_DAILY","PERIOD"]
[335238350,1724010641643,-422.337727,0.00016188,2]
[335238351,1724010641653,-827.095063,0.00016188,2]
[335238352,1724010641663,-422.337727,0.00016188,2]
[335238353,1724010641672,-67913.9454462,0.00016188,2]
[335238354,1724010641681,-151.0,0.00016198,2]
[335238355,1724010641691,-151.0,0.00016198,2]
[335238356,1724010641701,-328.230358,0.00016198,2]
[335238357,1724010641710,-328.230358,0.00016198,2]
[335238358,1724010641720,-343.368854,0.00016198,2]
[335238359,1724010641730,-151.0,0.00016198,2]
[335238360,1724010641739,-343.368854,0.00016198,2]
[335238361,1724010641749,-386.514089,0.00016198,2]
[335238362,1724010641759,-2642.57187003,0.00016198,2]
[335238363,1724010641768,-386.514089,0.00016198,2]
[335238364,1724010641778,-417.952605,0.00016198,2]
[335238365,1724010641787,-417.952605,0.00016198,2]
[335238366,1724010641796,-1544.478139,0.00016198,2]
[335238367,1724010641806,-1544.478139,0.00016198,2]
[335238368,1724010641816,-816.064538,0.00016198,2]
[335238369,1724010641826,-826.597614,0.00016198,2]
[335238370,1724010641838,-816.064538,0.00016198,2]
[335238371,1724010641849,-1858.817725,0.00016198,2]
[335238372,1724010641860,-826.597614,0.00016198,2]
[335238373,1724010641872,-1858.817725,0.00016198,2]
[335238374,1724010641882,-151.0,0.00016198,2]
[335238375,1724010641893,-151.0,0.00016198,2]
[335238376,1724010641904,-151.0,0.00016198,2]
[335238377,1724010641913,-470.018417,0.00016198,2]
[335238378,1724010641922,-470.018417,0.00016198,2]
[335238379,1724010641931,-249.470732,0.00016198,2]
[335238380,1724010641941,-249.470732,0.00016198,2]
[335238381,1724010641950,-151.682741,0.00016198,2]
[335238382,1724010641959,-151.0,0.00016218,2]
[335238383,1724010641969,-183.575114,0.00016218,2]
[335238384,1724010641979,-328.230358,0.00016218,2]
[335238385,1724010641988,-328.230358,0.00016218,2]
[335238386,1724010641997,-343.368854,0.00016218,2]
[335238387,1724010642007,-151.0,0.00016218,2]
[335238388,1724010642017,-343.368854,0.00016218,2]
[335238389,1724010642027,-386.514089,0.00016218,2]
[335238390,1724010642037,-386.514089,0.00016218,2]
[335238391,1724010642047,-417.952605,0.00016218,2]
[335238392,1724010642057,-417.952605,0.00016218,2]
[335238393,1724010642067,-1544.478139,0.00016218,2]
[335238394,1724010642078,-1544.478139,0.00016218,2]
[335238395,1724010642087,-816.064538,0.00016218,2]
[335238396,1724010642096,-826.597614,0.00016218,2]
[335238397,1724010642105,-816.064538,0.00016218,2]
[335238398,1724010642116,-1858.817725,0.00016218,2]
[335238399,1724010642126,-826.597614,0.00016218,2]
[335238400,1724010642135,-1858.817725,0.00016218,2]
[335238401,1724010642145,-151.0,0.00016218,2]
[335238402,1724010642154,-151.0,0.00016218,2]
[335238403,1724010642164,-151.0,0.00016218,2]
[335238404,1724010642173,-470.018417,0.00016218,2]
[335238405,1724010642182,-470.018417,0.00016218,2]
[335238406,1724010642191,-249.470732,0.00016218,2]
[335238407,1724010642201,-249.470732,0.00016218,2]
[335238408,1724010642210,-582.77032,0.00016218,2]
[335238409,1724010642219,-582.77032,0.00016218,2]
[335238410,1724010642228,-151.0,0.00016218,2]
[335238411,1724010642238,-151.0,0.00016218,2]
[335238412,1724010642248,-379.085514,0.00016218,2]
[335238413,1724010642257,-379.085514,0.00016218,2]
[335238414,1724010642267,-170.319748,0.00016218,2]
[335238415,1724010642277,-1427.506133,0.00016218,2]
[335238416,1724010642286,-170.319748,0.00016218,2]
[335238417,1724010642296,-1427.506133,0.00016218,2]
[335238418,1724010642306,-827.095063,0.00016218,2]
[335238419,1724010642315,-827.095063,0.00016218,2]
[335238420,1724010642325,-151.0,0.00016228,2]
[335238421,1724010642339,-924.702757,0.00016228,2]
[335238422,1724010642357,-924.702757,0.00016228,2]
[335238423,1724010642375,-151.0,0.00016228,2]
[335238424,1724010642389,-151.0,0.00016228,2]
[335238425,1724010642405,-151.0,0.00016228,2]
[335238426,1724010642422,-151.0,0.00016228,2]
[335238427,1724010642438,-151.0,0.00016228,2]
[335238428,1724010642453,-198.388061,0.00016228,2]
[335238429,1724010642470,-198.388061,0.00016228,2]
[335238430,1724010642484,-151.0,0.00016228,2]
[335238431,1724010642498,-151.0,0.00016228,2]
[335238432,1724010642514,-151.0,0.00016228,2]
[335238433,1724010642529,-151.0,0.00016228,2]
[335238434,1724010642539,-151.0,0.00016228,2]
[335238435,1724010642554,-500.0,0.00016262,2]
[335238436,1724010642567,-200.0,0.00016273,2]
[335238437,1724010642582,-295.0138388,0.00016274,2]
[335238438,1724010642598,-295.0138388,0.00016274,2]
[335238439,1724010642614,-295.0138388,0.00016274,2]
[335238440,1724010642627,-295.0138388,0.00016274,2]
[335238441,1724010642638,-295.0138388,0.00016274,2]
[335238442,1724010642652,-295.0138388,0.00016274,2]
[335238443,1724010642667,-295.0138388,0.00016274,2]
[335238444,1724010642680,-703.7326498,0.00016274,2]
[335238445,1724010642694,-67913.9454462,0.00016278,2]
[335238446,1724010642708,-1364.310846,0.00016278,2]
[335238447,1724010642720,-1364.310846,0.00016278,2]
[335238448,1724010642731,-422.337727,0.00016278,2]
[335238449,1724010642742,-422.337727,0.00016278,2]
[335238450,1724010642755,-151.0,0.00016288,2]
[335238451,1724010642767,-924.702757,0.00016288,2]
[335238452,1724010642781,-924.702757,0.00016288,2]
[335238453,1724010642794,-151.0,0.00016288,2]
[335238454,1724010642807,-156.655626,0.00016288,2]
[335238455,1724010642819,-151.0,0.00016288,2]
[335238456,1724010642832,-151.0,0.00016288,2]
[335238457,1724010642845,-151.0,0.00016288,2]
[335238458,1724010642858,-198.388061,0.00016288,2]
[335238459,1724010642871,-198.388061,0.00016288,2]
[335238460,1724010642883,-151.0,0.00016288,2]
[335238461,1724010642896,-151.0,0.00016288,2]
[335238462,1724010642909,-151.0,0.00016288,2]
[335238463,1724010642921,-151.0,0.00016288,2]
[335238464,1724010642934,-151.0,0.00016288,2]
[335238465,1724010642946,-1364.310846,0.00016288,2]
[335238466,1724010642959,-1364.310846,0.00016288,2]
[335238467,1724010642971,-422.337727,0.00016288,2]
[335238468,1724010642983,-422.337727,0.00016288,2]
[335238469,1724010642996,-94498.05953737,0.00016288,2]
[335238520,1724010996548,2117.99660996,0.000202,15]
[335238561,1724011547142,-9294.14720305,0.00012551,2]
[335238562,1724011547163,-2075.96573734,0.00013051,2]
[335238563,1724011547184,-183.315372,0.00014247,2]
[335238564,1724011547206,-7197.76613413,0.00014257,2]
[335238570,1724011672691,154.71377951,0.000201,59]
[335238576,1724011758325,-17702.23386587,0.00014257,2]
[335238578,1724011759374,1383.97715822,0.00013698,2]
[335238658,1724011838761,1153.31429852,0.00014519,2]
[335238659,1724011838802,-285.11080816,0.00014795,2]
[335238677,1724011840875,-30.83380384,0.00014795,2]
[335238678,1724011840885,-782.46103051,0.00015721,2]
[335238679,1724011840895,-782.46103051,0.00015721,2]
[335238680,1724011840904,-295.0138388,0.00015781,2]
[335238681,1724011840914,-565.1844073,0.00015781,2]
[335238682,1724011840924,-295.0138388,0.000158,2]
[335238683,1724011840933,-295.0138388,0.000158,2]
[335238684,1724011840944,-295.0138388,0.000158,2]
[335238685,1724011840955,-295.0138388,0.000158,2]
[335238686,1724011840967,-295.0138388,0.000158,2]
[335238687,1724011840979,-5244.23039316,0.00015849,2]
[335238688,1724011840989,-5244.23039316,0.00015849,2]
[335238689,1724011841000,-295.0138388,0.000159,2]
[335238690,1724011841011,-295.0138388,0.000159,2]
[335238691,1724011841022,-1110.8112074,0.0001597,2]
[335238692,1724011841034,-1110.8112074,0.0001597,2]
[335238693,1724011841045,-295.0138388,0.00016,2]
[335238694,1724011841055,-306.0,0.00016,2]
[335238695,1724011841066,-295.0138388,0.00016,2]
[335238696,1724011841077,-295.0138388,0.00016,2]
[335238697,1724011841088,-153.0,0.00016,2]
[335238698,1724011841099,-5327.60651547,0.00016066,2]
[335238699,1724011841109,-2522.18457825,0.00016073,2]
[335238700,1724011841120,-2000.0,0.00016088,2]
[335238701,1724011841129,-1141.90448487,0.00016098,2]
[335238702,1724011841139,-298.37089832,0.0001611,2]
[335238703,1724011841149,-1141.90448485,0.00016123,2]
[335238704,1724011841159,-953.29878775,0.00016145,2]
[335238705,1724011841168,-1141.90448485,0.00016148,2]
[335238706,1724011841177,-500.0,0.00016167,2]
[335238707,1724011841187,-342.05242229,0.00016167,2]
[335238708,1724011841196,-500.0,0.00016167,2]
[335238709,1724011841206,-500.0,0.00016167,2]
[335238710,1724011841216,-600.47175072,0.00016167,2]
[335238711,1724011841226,-500.0,0.00016167,2]
[335238712,1724011841236,-500.0,0.00016167,2]
[335238713,1724011841245,-500.0,0.00016167,2]
[335238714,1724011841255,-500.0,0.00016167,2]
[335238715,1724011841264,-68052.5890231,0.00016168,2]
[335238716,1724011841273,-1141.90448485,0.00016173,2]
[335238717,1724011841282,-136105.178046,0.00016178,2]
[335238718,1724011841291,-71074.44531361,0.00016188,2]
[335238719,1724011841301,-2642.57187003,0.00016198,2]
[335238720,1724011841310,-1141.90448485,0.00016198,2]
[335238721,1724011841320,-295.0138388,0.000162,2]
[335238722,1724011841329,-542.7314424,0.000162,2]
[335238723,1724011841339,-590.0276776,0.000162,2]
[335238724,1724011841348,-590.0276776,0.000162,2]
[335238725,1724011841357,-500.0,0.00016262,2]
[335238726,1724011841366,-68052.5890231,0.00016268,2]
[335238727,1724011841375,-1414.0,0.00016269,2]
[335238728,1724011841385,-8341.909,0.00016269,2]
[335238729,1724011841395,-1858.817725,0.00016278,2]
[335238730,1724011841406,-1858.817725,0.00016278,2]
[335238731,1724011841416,-151.0,0.00016278,2]
[335238732,1724011841425,-470.018417,0.00016278,2]
[335238733,1724011841435,-470.018417,0.00016278,2]
[335238734,1724011841444,-44811.01567406,0.00016278,2]
[335238735,1724011841458,-1035.8999797,0.00016278,2]
[335238765,1724011843777,-3384.75865101,0.00016278,2]
[335238893,1724012743155,-600.87674953,0.00012991,2]
[335238894,1724012743178,-174.149603,0.00014247,2]
[335238895,1724012743200,-300.0,0.00014299,2]
[335238896,1724012743222,-300.0,0.00014299,2]
[335238897,1724012743245,-16099.97333817,0.000143,2]
[335238901,1724012829108,-252.42727498,0.00013496,2]
[335238902,1724012829129,-1840.7005059,0.00014245,2]
[335238903,1724012829151,-8800.02666183,0.000143,2]
[335238904,1724012829171,-451.05634488,0.00014519,2]
[335238905,1724012829191,-211.01732116,0.00014519,2]
[335238906,1724012829212,-300.147381,0.00014795,2]
[335238907,1724012829232,-953.29878775,0.00015699,2]
[335238908,1724012829253,-2542.42196238,0.00016049,2]
[335238910,1724012853126,-280.12797765,0.000143,2]
[335238911,1724012853150,-196.0,0.000143,2]
[335238912,1724012853177,-600.87674953,0.00014519,2]
[335238913,1724012853199,-1519.39948121,0.00016049,2]
[335238919,1724012955087,-157.75249826,0.00014519,2]
[335238920,1724012956146,-443.12425127,0.00014519,2]
[335238933,1724013031719,-285.140011,0.00014795,2]
[335238934,1724013031729,-24900.0,0.00015091,2]
[335238935,1724013031739,-591.24334715,0.000159,2]
[335238936,1724013031749,-1009.21986791,0.00016,2]
[335238937,1724013031759,-2000.0,0.00016065,2]
[335238938,1724013031768,-2206.91150596,0.00016065,2]
[335238939,1724013031777,-154.68290005,0.0001611,2]
[335238940,1724013031787,-500.0,0.00016154,2]
[335238941,1724013031796,-500.0,0.00016154,2]
[335238942,1724013031805,-342.05242229,0.00016154,2]
[335238943,1724013031815,-320.3302255,0.00016154,2]
[335238944,1724013031825,-500.0,0.00016154,2]
[335238945,1724013031834,-500.0,0.00016154,2]
[335238946,1724013031844,-500.0,0.00016154,2]
[335238947,1724013031854,-500.0,0.00016154,2]
[335238948,1724013031863,-500.0,0.00016154,2]
[335238949,1724013031873,-280.14152522,0.00016154,2]
[335238950,1724013031882,-8051.09805779,0.00016155,2]
[335238959,1724013037861,-456.76179394,0.00016065,2]
[335238960,1724013037871,-456.76179394,0.00016108,2]
[335238961,1724013037880,-349.02952084,0.00016155,2]
[335238962,1724013037892,-2953.07841241,0.00016155,2]
[335238964,1724013039971,600.87674953,0.00014519,2]
[335238965,1724013039984,-456.76179394,0.00016152,2]
[335238966,1724013039994,-132428.15304196,0.00016155,2]
[335238967,1724013040004,-173700.52387785,0.00016165,2]
[335238968,1724013040014,-107961.66529926,0.00016178,2]
[335238969,1724013040025,-933.42393354,0.00016178,2]
[335238979,1724013042893,-2940.5326311,0.00016178,2]
[335239000,1724013045836,-423.81688255,0.00016178,2]
[335239001,1724013045894,-1057.369705,0.00016178,2]
[335239002,1724013045981,-11081.10217746,0.00016178,2]
[335239012,1724013109472,817.96,0.00010959,2]
[335239013,1724013119981,600.87674953,0.00014519,2]
[335239111,1724013955111,-600.87674953,0.00012163,2]
[335239112,1724013955138,-11.9306051,0.00014247,2]
[335239113,1724014026115,-153.5115169,0.00014247,2]
[335239114,1724014026137,-300.0,0.00014383,2]
[335239115,1724014026159,-300.0,0.00014383,2]
[335239116,1724014026182,-485.18690257,0.00014384,2]
[335239119,1724014046100,-500.90807304,0.00014245,2]
[335239120,1724014046123,-672.35573345,0.00014384,2]
[335239138,1724014151098,-600.87674953,0.00014245,2]
[335239139,1724014151120,-600.87674953,0.00014245,2]
[335239140,1724014151144,-5246.91433157,0.00014384,2]
[335239141,1724014169096,-600.87674953,0.00013971,2]
[335239142,1724014169117,-16546.05753871,0.00014384,2]
[335239143,1724014169138,-330.1068973,0.00014519,2]
[335239144,1724014169158,-203.4336123,0.00014542,2]
[335239230,1724014240280,-289.308126,0.00014795,2]
[335239232,1724014240291,-5327.60651547,0.00015964,2]
[335239234,1724014240301,-153.0,0.00016,2]
[335239236,1724014240311,-408.718811,0.000161,2]
[335239238,1724014240321,-2000.0,0.0001619,2]
[335239240,1724014240332,-182.7047176,0.000162,2]
[335239243,1724014240342,-242.9856,0.00016207,2]
[335239245,1724014240352,-182.70471757,0.00016235,2]
[335239247,1724014240361,-500.0,0.00016262,2]
[335239249,1724014240370,-182.70471757,0.00016269,2]
[335239251,1724014240379,-239.4366956,0.00016279,2]
[335239253,1724014240390,-500.0,0.00016279,2]
[335239255,1724014240400,-500.0,0.00016279,2]
[335239257,1724014240409,-500.0,0.00016279,2]
[335239259,1724014240418,-500.0,0.00016279,2]
[335239261,1724014240428,-370.3302255,0.00016279,2]
[335239263,1724014240438,-500.0,0.00016279,2]
[335239265,1724014240448,-500.0,0.00016279,2]
[335239267,1724014240458,-230.14152522,0.00016279,2]
[335239269,1724014240467,-500.0,0.00016279,2]
[335239271,1724014240477,-70501.2069503,0.0001628,2]
[335239273,1724014240487,-150.01,0.00016287,2]
[335239275,1724014240496,-4244.86445067,0.00016287,2]
[335239277,1724014240505,-71074.44531361,0.0001629,2]
[335239279,1724014240514,-150.112233,0.000163,2]
[335239281,1724014240524,-153.0,0.000163,2]
[335239283,1724014240533,-182.70471757,0.00016304,2]
[335239286,1724014240544,-155.0,0.0001632,2]
[335239288,1724014240555,-70501.2069503,0.00016328,2]
[335239290,1724014240566,-2642.57187003,0.00016338,2]
[335239292,1724014240577,-182.70471757,0.00016338,2]
[335239294,1724014240589,-40000.0,0.00016338,2]
[335239296,1724014240600,-153.0,0.00016384,2]
[335239298,1724014240609,-153.0,0.00016384,2]
[335239300,1724014240619,-306.0,0.00016384,2]
[335239302,1724014240629,-153.0,0.00016384,2]
[335239303,1724014240638,-151.0,0.0001639,2]
[335239305,1724014240649,-151.0,0.0001639,2]
[335239307,1724014240659,-151.0,0.0001639,2]
[335239309,1724014240669,-151.0,0.0001639,2]
[335239311,1724014240678,-151.0,0.0001639,2]
[335239313,1724014240689,-379.085514,0.0001639,2]
[335239315,1724014240699,-151.0,0.0001639,2]
[335239316,1724014240711,-379.085514,0.0001639,2]
[335239317,1724014240724,-151.0,0.0001639,2]
[335239318,1724014240734,-151.0,0.0001639,2]
[335239319,1724014240745,-151.0,0.0001639,2]
[335239320,1724014240754,-151.0,0.0001639,2]
[335239321,1724014240766,-417.952605,0.0001639,2]
[335239322,1724014240778,-417.952605,0.0001639,2]
[335239323,1724014240790,-328.230358,0.0001639,2]
[335239324,1724014240799,-328.230358,0.0001639,2]
[335239325,1724014240808,-826.597614,0.0001639,2]
[335239326,1724014240818,-151.0,0.0001639,2]
[335239327,1724014240827,-151.0,0.0001639,2]
[335239328,1724014240836,-816.064538,0.0001639,2]
[335239329,1724014240845,-924.702757,0.0001639,2]
[335239330,1724014240854,-924.702757,0.0001639,2]
[335239331,1724014240863,-151.0,0.0001639,2]
[335239332,1724014240873,-870.626382,0.0001639,2]
[335239333,1724014240883,-870.626382,0.0001639,2]
[335239334,1724014240892,-151.0,0.0001639,2]
[335239335,1724014240902,-151.0,0.0001639,2]
[335239336,1724014240911,-211.739216,0.0001639,2]
[335239337,1724014240923,-3793.09287366,0.000164,2]
[335239338,1724014240932,-150.112233,0.000164,2]
[335239339,1724014240942,-150.112233,0.000164,2]
[335239340,1724014240951,-150.112233,0.000164,2]
[335239341,1724014240960,-150.112233,0.000164,2]
[335239342,1724014240970,-150.112234,0.000164,2]
[335239343,1724014240979,-150.112233,0.000164,2]
[335239344,1724014240989,-154.786509,0.000164,2]
[335239345,1724014240999,-361.440899,0.00016408,2]
[335239346,1724014241008,-361.440899,0.00016408,2]
[335239347,1724014241017,-1364.310846,0.00016408,2]
[335239348,1724014241026,-1364.310846,0.00016408,2]
[335239349,1724014241036,-70501.2069503,0.00016408,2]
[335239350,1724014241045,-285.225,0.00016408,2]
[335239351,1724014241055,-521.0,0.00016408,2]
[335239352,1724014241067,-1414.0,0.00016408,2]
[335239353,1724014241076,-150.0,0.00016408,2]
[335239354,1724014241085,-422.337727,0.00016418,2]
[335239355,1724014241095,-422.337727,0.00016418,2]
[335239356,1724014241104,-151.0,0.00016418,2]
[335239357,1724014241113,-151.0,0.00016418,2]
[335239358,1724014241122,-151.0,0.00016418,2]
[335239359,1724014241269,-151.0,0.00016418,2]
[335239360,1724014241280,-582.77032,0.00016418,2]
[335239361,1724014241291,-157.728852,0.00016418,2]
[335239362,1724014241300,-582.77032,0.00016418,2]
[335239363,1724014241310,-157.728852,0.00016418,2]
[335239364,1724014241319,-386.514089,0.00016418,2]
[335239365,1724014241328,-386.514089,0.00016418,2]
[335239366,1724014241337,-1356.130827,0.00016418,2]
[335239367,1724014241349,-1356.130827,0.00016418,2]
[335239368,1724014241358,-151.0,0.00016418,2]
[335239369,1724014241369,-151.0,0.00016418,2]
[335239370,1724014241379,-151.0,0.00016418,2]
[335239371,1724014241390,-151.0,0.00016418,2]
[335239372,1724014241400,-151.0,0.00016418,2]
[335239373,1724014241409,-151.0,0.00016418,2]
[335239374,1724014241418,-1858.817725,0.00016418,2]
[335239375,1724014241427,-1858.817725,0.00016418,2]
[335239376,1724014241437,-470.018417,0.00016418,2]
[335239377,1724014241446,-470.018417,0.00016418,2]
[335239378,1724014241455,-151.0,0.00016418,2]
[335239379,1724014241464,-151.682741,0.00016428,2]
[335239380,1724014241473,-151.0,0.00016428,2]
[335239381,1724014241483,-151.0,0.00016428,2]
[335239382,1724014241492,-151.0,0.00016428,2]
[335239383,1724014241501,-151.0,0.00016428,2]
[335239384,1724014241510,-379.085514,0.00016428,2]
[335239385,1724014241519,-151.0,0.00016428,2]
[335239386,1724014241528,-379.085514,0.00016428,2]
[335239387,1724014241537,-151.0,0.00016428,2]
[335239388,1724014241546,-151.0,0.00016428,2]
[335239389,1724014241555,-151.0,0.00016428,2]
[335239390,1724014241565,-151.0,0.00016428,2]
[335239391,1724014241574,-417.952605,0.00016428,2]
[335239392,1724014241583,-417.952605,0.00016428,2]
[335239393,1724014241594,-328.230358,0.00016428,2]
[335239394,1724014241604,-328.230358,0.00016428,2]
[335239395,1724014241612,-826.597614,0.00016428,2]
[335239396,1724014241621,-151.0,0.00016428,2]
[335239397,1724014241630,-151.0,0.00016428,2]
[335239398,1724014241639,-816.064538,0.00016428,2]
[335239399,1724014241649,-924.702757,0.00016428,2]
[335239400,1724014241658,-924.702757,0.00016428,2]
[335239401,1724014241668,-151.0,0.00016428,2]
[335239402,1724014241677,-870.626382,0.00016428,2]
[335239403,1724014241687,-361.440899,0.00016428,2]
[335239404,1724014241697,-361.440899,0.00016428,2]
[335239405,1724014241706,-870.626382,0.00016428,2]
[335239406,1724014241717,-361.440899,0.00016428,2]
[335239407,1724014241727,-361.440899,0.00016428,2]
[335239408,1724014241736,-151.0,0.00016428,2]
[335239409,1724014241745,-151.0,0.00016428,2]
[335239410,1724014241754,-422.337727,0.00016428,2]
[335239411,1724014241763,-422.337727,0.00016428,2]
[335239412,1724014241773,-1544.478139,0.00016428,2]
[335239413,1724014241782,-151.0,0.00016428,2]
[335239414,1724014241791,-151.0,0.00016428,2]
[335239415,1724014241801,-151.0,0.00016428,2]
[335239416,1724014241811,-151.0,0.00016428,2]
[335239417,1724014241820,-582.77032,0.00016428,2]
[335239418,1724014241830,-157.728852,0.00016428,2]
[335239419,1724014241840,-582.77032,0.00016428,2]
[335239420,1724014241853,-157.728852,0.00016428,2]
[335239421,1724014241862,-386.514089,0.00016428,2]
[335239422,1724014241872,-386.514089,0.00016428,2]
[335239423,1724014241881,-1356.130827,0.00016428,2]
[335239424,1724014241891,-1356.130827,0.00016428,2]
[335239425,1724014241900,-151.0,0.00016428,2]
[335239426,1724014241909,-151.0,0.00016428,2]
[335239427,1724014241918,-183.575114,0.00016428,2]
[335239428,1724014241928,-151.0,0.00016428,2]
[335239429,1724014241937,-156.655626,0.00016428,2]
[335239430,1724014241946,-151.0,0.00016428,2]
[335239431,1724014241955,-1858.817725,0.00016428,2]
[335239432,1724014241964,-1858.817725,0.00016428,2]
[335239433,1724014241973,-470.018417,0.00016428,2]
[335239434,1724014241982,-470.018417,0.00016428,2]
[335239435,1724014241992,-151.0,0.00016428,2]
[335239436,1724014242001,-1364.310846,0.00016428,2]
[335239437,1724014242011,-1364.310846,0.00016428,2]
[335239438,1724014242020,-8679.88242253,0.00016428,2]
[335239458,1724014243151,-1139.93662847,0.00016408,2]
[335239505,1724014266090,600.87674953,0.00014519,2]
[335239573,1724015348131,-300.0,0.00012119,2]
[335239574,1724015348155,-300.0,0.00012119,2]
[335239575,1724015348180,-18127.27486348,0.0001212,2]
[335239576,1724015348203,-1107.45995268,0.00012516,2]
[335239577,1724015353098,-5877.6932902,0.00012516,2]
[335239578,1724015353119,-2206.23345397,0.00012873,2]
[335239599,1724015438205,-300.0,0.00012872,2]
[335239601,1724015438214,-10030.08964508,0.00012873,2]
[335239602,1724015438223,-1671.62378754,0.00012873,2]
[335239603,1724015438233,-600.87674953,0.00012898,2]
[335239604,1724015438242,-2509.57365535,0.00012925,2]
[335239605,1724015438251,-180.75332185,0.00012985,2]
[335239606,1724015438260,-247.12796354,0.00012985,2]
[335239607,1724015438272,-309.11885378,0.00012985,2]
[335239608,1724015438281,-520.2055012,0.00012985,2]
[335239609,1724015438290,-292.98093876,0.00012985,2]
[335239610,1724015438299,-272.38247463,0.00012989,2]
[335239611,1724015438309,-601.81919739,0.00012989,2]
[335239612,1724015438318,-24900.0,0.00013411,2]
[335239613,1724015438327,-2142.17325985,0.00013477,2]
[335239614,1724015438340,-227.51894009,0.00013698,2]
[335239615,1724015438349,-1659.2924361,0.00013699,2]
[335239616,1724015438359,-208.11177706,0.00013792,2]
[335239617,1724015438368,-173.241865,0.00014247,2]
[335239618,1724015438377,-289.09972,0.00014795,2]
[335239619,1724015438386,-449.53391502,0.0001589,2]
[335239620,1724015438395,-1546.14415945,0.0001589,2]
[335239623,1724015440631,-404.31033644,0.00012989,2]
[335239624,1724015440641,-453.85584055,0.0001589,2]
[335239625,1724015440650,-207.5283979,0.00015973,2]
[335239626,1724015440660,-415.0567958,0.00015973,2]
[335239627,1724015440669,-306.0,0.00015973,2]
[335239628,1724015440680,-415.0567958,0.00015973,2]
[335239629,1724015440690,-207.5283979,0.00015973,2]
[335239631,1724015440700,-207.5283979,0.00015973,2]
[335239633,1724015440710,-207.5283979,0.00015973,2]
[335239635,1724015440720,-153.0,0.00015973,2]
[335239637,1724015440729,-207.5283979,0.00015978,2]
[335239639,1724015440739,-425.98942836,0.00015979,2]
[335239641,1724015440749,-500.0,0.00015979,2]
[335239643,1724015440758,-500.0,0.00015979,2]
[335239644,1724015440768,-500.0,0.00015979,2]
[335239645,1724015440777,-500.0,0.00015979,2]
[335239646,1724015440788,-628.64959237,0.00015979,2]
[335239647,1724015440797,-500.0,0.00015979,2]
[335239648,1724015440806,-500.0,0.00015979,2]
[335239649,1724015440816,-187.56767555,0.00015979,2]
[335239650,1724015440825,-74666.9516832,0.0001598,2]
[335239651,1724015440835,-5327.60651547,0.00015989,2]
[335239652,1724015440844,-74666.9516832,0.0001599,2]
[335239653,1724015440854,-150.0,0.0001599,2]
[335239654,1724015440864,-38320.09874334,0.00016,2]
[335239655,1724015440874,-357.01804545,0.00016,2]
[335239656,1724015440883,-154.68290005,0.00016,2]
[335239657,1724015440893,-449.533915,0.00016002,2]
[335239658,1724015440902,-2509.57365529,0.00016064,2]
[335239659,1724015440911,-1414.0,0.00016077,2]
[335239660,1724015440921,-8333.0,0.00016077,2]
[335239661,1724015440930,-153.0,0.00016078,2]
[335239662,1724015440939,-207.5283979,0.00016078,2]
[335239663,1724015440950,-449.533915,0.00016114,2]
[335239664,1724015440959,-151.0,0.00016188,2]
[335239665,1724015440969,-151.0,0.00016188,2]
[335239666,1724015440978,-151.0,0.00016188,2]
[335239667,1724015440987,-816.064538,0.00016188,2]
[335239668,1724015440997,-816.064538,0.00016188,2]
[335239669,1724015441006,-1858.817725,0.00016188,2]
[335239670,1724015441015,-1858.817725,0.00016188,2]
[335239671,1724015441026,-151.0,0.00016188,2]
[335239672,1724015441035,-33769.80141869,0.00016188,2]
[335239681,1724015443276,-207.5283979,0.00015973,2]
[335239682,1724015443286,-5124.8716021,0.00016188,2]
[335239795,1724016426146,-2044.55426687,0.00012971,2]
[335239805,1724016443100,-600.87674953,0.00012989,2]